[Event "Titled Tuesday Blitz August 08 Late 2023"]
[White "Rakitic2010"]
[Black "Haydon, David L"]
[BlackFideId "415405"]
[WhiteElo "2484"]
[BlackElo "2773"]
[Result "1/2-1/2"]
[Round "3"]
[TimeControl "180+1"]
[Date "2023.08.08"]
[WhiteClock "0:00:06"]
[BlackClock "0:00:07"]
[Board "69"]

1. e4 {[%clk 0:03:00]}  d5 {[%clk 0:02:59]} 2. exd5 {[%clk 0:02:59]}  Qxd5 {[%clk 0:03:00]} 3. Nc3 {[%clk 0:03:00]}  Qd6 {[%clk 0:03:00]} 4. d4 {[%clk 0:02:58]}  Nf6 {[%clk 0:03:00]} 5. Nf3 {[%clk 0:02:58]}  g6 {[%clk 0:02:58]} 6. g3 {[%clk 0:02:55]}  Bg7 {[%clk 0:02:58]} 7. Bf4 {[%clk 0:02:55]}  Qd8 {[%clk 0:02:56]} 8. Bg2 {[%clk 0:02:55]}  O-O {[%clk 0:02:56]} 9. O-O {[%clk 0:02:55]}  c6 {[%clk 0:02:55]} 10. Ne5 {[%clk 0:02:54]}  Nbd7 {[%clk 0:02:54]} 11. Qe2 {[%clk 0:02:53]}  Nb6 {[%clk 0:02:54]} 12. Rfe1 {[%clk 0:02:49]}  Qxd4 {[%clk 0:02:50]} 13. Rad1 {[%clk 0:02:43]}  Qb4 {[%clk 0:02:48]} 14. Bc1 {[%clk 0:02:31]}  Nfd5 {[%clk 0:02:35]} 15. Nxd5 {[%clk 0:02:17]}  Nxd5 {[%clk 0:02:32]} 16. a3 {[%clk 0:02:14]}  Qa4 {[%clk 0:02:26]} 17. b3 {[%clk 0:02:09]}  Qa5 {[%clk 0:02:15]} 18. Bb2 {[%clk 0:01:56]}  Qc7 {[%clk 0:02:07]} 19. c4 {[%clk 0:01:51]}  Nf6 {[%clk 0:02:05]} 20. Nf3 {[%clk 0:01:29]}  Re8 {[%clk 0:02:01]} 21. Be5 {[%clk 0:01:24]}  Qa5 {[%clk 0:01:58]} 22. b4 {[%clk 0:01:05]}  Qxa3 {[%clk 0:01:50]} 23. b5 {[%clk 0:01:01]}  cxb5 {[%clk 0:01:46]} 24. cxb5 {[%clk 0:00:54]}  Bg4 {[%clk 0:01:42]} 25. Rd3 {[%clk 0:00:52]}  Qc5 {[%clk 0:01:33]} 26. h3 {[%clk 0:00:52]}  Bf5 {[%clk 0:01:31]} 27. Rc3 {[%clk 0:00:50]}  Qb6 {[%clk 0:01:28]} 28. Nd4 {[%clk 0:00:50]}  Bd7 {[%clk 0:01:27]} 29. Rc7 {[%clk 0:00:50]}  Rad8 {[%clk 0:01:23]} 30. Rxb7 {[%clk 0:00:50]}  Qc5 {[%clk 0:01:20]} 31. Rc7 {[%clk 0:00:44]}  Qb6 {[%clk 0:01:10]} 32. Rb7 {[%clk 0:00:44]}  Qc5 {[%clk 0:00:40]} 33. Nc6 {[%clk 0:00:42]}  Bxc6 {[%clk 0:00:38]} 34. bxc6 {[%clk 0:00:43]}  Rc8 {[%clk 0:00:36]} 35. c7 {[%clk 0:00:43]}  e6 {[%clk 0:00:33]} 36. Rb8 {[%clk 0:00:41]}  Nd5 {[%clk 0:00:26]} 37. Bxg7 {[%clk 0:00:37]}  Kxg7 {[%clk 0:00:26]} 38. Qe5+ {[%clk 0:00:29]}  f6 {[%clk 0:00:24]} 39. Qb2 {[%clk 0:00:19]}  Qd6 {[%clk 0:00:09]} 40. Rb7 {[%clk 0:00:12]}  Rxc7 {[%clk 0:00:08]} 41. Bxd5 {[%clk 0:00:12]}  Rxb7 {[%clk 0:00:04]} 42. Bxb7 {[%clk 0:00:12]}  Rb8 {[%clk 0:00:04]} 43. Rb1 {[%clk 0:00:11]}  e5 {[%clk 0:00:05]} 44. Qc3 {[%clk 0:00:11]}  Qd7 {[%clk 0:00:05]} 45. Be4 {[%clk 0:00:11]}  Rxb1+ {[%clk 0:00:04]} 46. Bxb1 {[%clk 0:00:11]}  Qd1+ {[%clk 0:00:04]} 47. Kh2 {[%clk 0:00:10]}  Qxb1 {[%clk 0:00:04]} 48. Qc7+ {[%clk 0:00:10]}  Kh6 {[%clk 0:00:05]} 49. Qxa7 {[%clk 0:00:11]}  g5 {[%clk 0:00:05]} 50. Qe7 {[%clk 0:00:09]}  Qf5 {[%clk 0:00:05]} 51. Qf8+ {[%clk 0:00:10]}  Kg6 {[%clk 0:00:05]} 52. Qg8+ {[%clk 0:00:09]}  Kh6 {[%clk 0:00:05]} 53. Qf8+ {[%clk 0:00:09]}  Kg6 {[%clk 0:00:06]} 54. Qg8+ {[%clk 0:00:10]}  Kh6 {[%clk 0:00:07]} 55. Qf8+ {[%clk 0:00:06]} 1/2-1/2


[Site "https://www.chess.com"]

[Event "Titled Tuesday Blitz August 08 Late 2023"]
[White "Sadilek, Peter"]
[Black "Hambleton, Aman"]
[WhiteFideId "1616439"]
[BlackFideId "2606577"]
[WhiteElo "2483"]
[BlackElo "2754"]
[Result "0-1"]
[Round "3"]
[TimeControl "180+1"]
[Date "2023.08.08"]
[WhiteClock "0:00:12"]
[BlackClock "0:00:03"]
[Board "70"]

1. d4 {[%clk 0:02:51]}  e5 {[%clk 0:02:59]} 2. dxe5 {[%clk 0:02:50]}  Nc6 {[%clk 0:03:00]} 3. Nf3 {[%clk 0:02:50]}  Qe7 {[%clk 0:03:00]} 4. Nc3 {[%clk 0:02:50]}  Nxe5 {[%clk 0:03:01]} 5. Nd5 {[%clk 0:02:51]}  Nxf3+ {[%clk 0:03:00]} 6. gxf3 {[%clk 0:02:52]}  Qd8 {[%clk 0:03:01]} 7. Bf4 {[%clk 0:02:52]}  d6 {[%clk 0:03:01]} 8. Qd2 {[%clk 0:02:53]}  Nf6 {[%clk 0:03:02]} 9. Bg5 {[%clk 0:02:52]}  Be7 {[%clk 0:03:02]} 10. Nxe7 {[%clk 0:02:52]}  Qxe7 {[%clk 0:03:03]} 11. O-O-O {[%clk 0:02:52]}  h6 {[%clk 0:03:03]} 12. Bf4 {[%clk 0:02:42]}  Be6 {[%clk 0:03:02]} 13. Rg1 {[%clk 0:02:41]}  g5 {[%clk 0:03:02]} 14. Be3 {[%clk 0:02:41]}  O-O-O {[%clk 0:02:49]} 15. Bd4 {[%clk 0:02:31]}  Rhg8 {[%clk 0:02:46]} 16. e4 {[%clk 0:02:23]}  Kb8 {[%clk 0:02:38]} 17. Qa5 {[%clk 0:02:14]}  b6 {[%clk 0:02:31]} 18. Qc3 {[%clk 0:02:14]}  Nd7 {[%clk 0:02:27]} 19. Bb5 {[%clk 0:02:15]}  c5 {[%clk 0:02:15]} 20. Bg7 {[%clk 0:01:52]}  f5 {[%clk 0:00:40]} 21. Bxd7 {[%clk 0:01:12]}  Rxd7 {[%clk 0:00:41]} 22. Bf6 {[%clk 0:00:47]}  Qf7 {[%clk 0:00:38]} 23. Rxd6 {[%clk 0:00:26]}  Rxd6 {[%clk 0:00:36]} 24. Be5 {[%clk 0:00:26]}  Rd8 {[%clk 0:00:07]} 25. Rd1 {[%clk 0:00:27]}  Kc7 {[%clk 0:00:03]} 26. Rxd6 {[%clk 0:00:19]}  Rxd6 {[%clk 0:00:04]} 27. Qd3 {[%clk 0:00:17]}  Qe7 {[%clk 0:00:02]} 28. exf5 {[%clk 0:00:16]}  Bf7 {[%clk 0:00:03]} 29. Bg3 {[%clk 0:00:12]}  Qe1+ {[%clk 0:00:03]} 30. Qd1 {[%clk 0:00:12]}  Qxd1# {[%clk 0:00:03]} 0-1


[Site "https://www.chess.com"]

[Event "Titled Tuesday Blitz August 08 Late 2023"]
[White "Garrido Outon, Alex"]
[Black "Tejedor Fuente, Enrique"]
[WhiteFideId "24516279"]
[BlackFideId "2299100"]
[WhiteElo "2480"]
[BlackElo "2747"]
[Result "0-1"]
[Round "3"]
[TimeControl "180+1"]
[Date "2023.08.08"]
[WhiteClock "0:00:47"]
[BlackClock "0:01:06"]
[Board "73"]

1. Nf3 {[%clk 0:03:00]}  d6 {[%clk 0:02:36]} 2. g3 {[%clk 0:02:59]}  g6 {[%clk 0:02:27]} 3. Bg2 {[%clk 0:02:59]}  Bg7 {[%clk 0:02:28]} 4. O-O {[%clk 0:02:59]}  e5 {[%clk 0:02:19]} 5. c4 {[%clk 0:02:57]}  Be6 {[%clk 0:02:14]} 6. d3 {[%clk 0:02:57]}  h6 {[%clk 0:02:05]} 7. Nc3 {[%clk 0:02:33]}  Nc6 {[%clk 0:01:56]} 8. Rb1 {[%clk 0:02:22]}  a5 {[%clk 0:01:52]} 9. a3 {[%clk 0:02:22]}  Nge7 {[%clk 0:01:47]} 10. b4 {[%clk 0:02:22]}  axb4 {[%clk 0:01:47]} 11. axb4 {[%clk 0:02:23]}  Qd7 {[%clk 0:01:48]} 12. Nd2 {[%clk 0:02:17]}  Bh3 {[%clk 0:01:42]} 13. Bb2 {[%clk 0:02:08]}  Bxg2 {[%clk 0:01:29]} 14. Kxg2 {[%clk 0:02:08]}  Nxb4 {[%clk 0:01:30]} 15. Ba1 {[%clk 0:02:02]}  Na6 {[%clk 0:01:28]} 16. Kg1 {[%clk 0:01:54]}  b6 {[%clk 0:01:24]} 17. e3 {[%clk 0:01:51]}  h5 {[%clk 0:01:24]} 18. h4 {[%clk 0:01:46]}  O-O {[%clk 0:01:23]} 19. Nf3 {[%clk 0:01:44]}  Nc5 {[%clk 0:01:23]} 20. d4 {[%clk 0:01:41]}  exd4 {[%clk 0:01:22]} 21. exd4 {[%clk 0:01:42]}  Ne6 {[%clk 0:01:22]} 22. d5 {[%clk 0:01:38]}  Nc5 {[%clk 0:01:22]} 23. Nb5 {[%clk 0:01:38]}  Bxa1 {[%clk 0:01:15]} 24. Rxa1 {[%clk 0:01:39]}  Rxa1 {[%clk 0:01:15]} 25. Qxa1 {[%clk 0:01:39]}  Nxd5 {[%clk 0:01:16]} 26. cxd5 {[%clk 0:01:21]}  Qxb5 {[%clk 0:01:15]} 27. Qf6 {[%clk 0:01:11]}  Qe8 {[%clk 0:01:09]} 28. Re1 {[%clk 0:01:07]}  Qd8 {[%clk 0:01:08]} 29. Qf4 {[%clk 0:00:47]}  Nd3 {[%clk 0:01:06]} 0-1


[Site "https://www.chess.com"]

[Event "Titled Tuesday Blitz August 08 Late 2023"]
[White "Rakotomaharo, Fy Antenaina"]
[Black "Lima, Kleyton Alcantara"]
[WhiteFideId "13100050"]
[BlackFideId "22718397"]
[WhiteElo "2715"]
[BlackElo "2469"]
[Result "1-0"]
[Round "3"]
[TimeControl "180+1"]
[Date "2023.08.08"]
[WhiteClock "0:00:04"]
[BlackClock "0:00:08"]
[Board "75"]

1. Nf3 {[%clk 0:03:00]}  c5 {[%clk 0:03:00]} 2. g3 {[%clk 0:03:00]}  Nc6 {[%clk 0:02:59]} 3. Bg2 {[%clk 0:03:01]}  e5 {[%clk 0:02:59]} 4. O-O {[%clk 0:03:00]}  g6 {[%clk 0:03:00]} 5. c4 {[%clk 0:03:00]}  Bg7 {[%clk 0:03:00]} 6. Nc3 {[%clk 0:03:00]}  d6 {[%clk 0:02:59]} 7. Ne1 {[%clk 0:03:01]}  Nge7 {[%clk 0:02:53]} 8. Nc2 {[%clk 0:03:01]}  f5 {[%clk 0:02:52]} 9. d3 {[%clk 0:02:59]}  O-O {[%clk 0:02:48]} 10. Rb1 {[%clk 0:02:57]}  f4 {[%clk 0:02:47]} 11. b4 {[%clk 0:02:51]}  Nd4 {[%clk 0:02:41]} 12. bxc5 {[%clk 0:02:41]}  dxc5 {[%clk 0:02:40]} 13. Nxd4 {[%clk 0:02:33]}  cxd4 {[%clk 0:02:38]} 14. Nd5 {[%clk 0:02:31]}  Nxd5 {[%clk 0:02:28]} 15. Bxd5+ {[%clk 0:02:32]}  Kh8 {[%clk 0:02:27]} 16. Ba3 {[%clk 0:02:29]}  Rf6 {[%clk 0:02:05]} 17. Qd2 {[%clk 0:01:47]}  Rb8 {[%clk 0:01:52]} 18. Bg2 {[%clk 0:01:33]}  Qc7 {[%clk 0:01:26]} 19. Rb3 {[%clk 0:01:22]}  Bd7 {[%clk 0:01:23]} 20. Rfb1 {[%clk 0:01:21]}  Bc6 {[%clk 0:01:18]} 21. Bxc6 {[%clk 0:01:07]}  Rxc6 {[%clk 0:01:18]} 22. Rb5 {[%clk 0:00:54]}  h5 {[%clk 0:01:13]} 23. Rd5 {[%clk 0:00:46]}  Rf6 {[%clk 0:01:07]} 24. Rbb5 {[%clk 0:00:31]}  Rf7 {[%clk 0:01:04]} 25. Bd6 {[%clk 0:00:30]}  Qc8 {[%clk 0:01:00]} 26. Bxb8 {[%clk 0:00:29]}  Qxb8 {[%clk 0:01:01]} 27. Qa5 {[%clk 0:00:23]}  b6 {[%clk 0:00:57]} 28. Qb4 {[%clk 0:00:18]}  Qc8 {[%clk 0:00:51]} 29. Qd6 {[%clk 0:00:16]}  Qf5 {[%clk 0:00:46]} 30. Rxe5 {[%clk 0:00:13]}  Bxe5 {[%clk 0:00:43]} 31. Qxe5+ {[%clk 0:00:14]}  Qxe5 {[%clk 0:00:43]} 32. Rxe5 {[%clk 0:00:15]}  fxg3 {[%clk 0:00:41]} 33. hxg3 {[%clk 0:00:16]}  Kg7 {[%clk 0:00:30]} 34. Rd5 {[%clk 0:00:14]}  Rb7 {[%clk 0:00:28]} 35. Rxd4 {[%clk 0:00:14]}  b5 {[%clk 0:00:28]} 36. cxb5 {[%clk 0:00:15]}  Rxb5 {[%clk 0:00:29]} 37. Rd7+ {[%clk 0:00:15]}  Kf6 {[%clk 0:00:29]} 38. Rxa7 {[%clk 0:00:16]}  Rb2 {[%clk 0:00:29]} 39. Kf1 {[%clk 0:00:16]}  Kg5 {[%clk 0:00:29]} 40. Ra4 {[%clk 0:00:14]}  Kf5 {[%clk 0:00:27]} 41. e3 {[%clk 0:00:14]}  Rd2 {[%clk 0:00:25]} 42. Rf4+ {[%clk 0:00:09]}  Kg5 {[%clk 0:00:22]} 43. Rd4 {[%clk 0:00:08]}  Rxa2 {[%clk 0:00:21]} 44. Kg2 {[%clk 0:00:09]}  Kf5 {[%clk 0:00:21]} 45. Kf3 {[%clk 0:00:09]}  Rb2 {[%clk 0:00:20]} 46. Rd5+ {[%clk 0:00:09]}  Kf6 {[%clk 0:00:20]} 47. d4 {[%clk 0:00:09]}  g5 {[%clk 0:00:21]} 48. Ra5 {[%clk 0:00:07]}  Rb3 {[%clk 0:00:21]} 49. Ke4 {[%clk 0:00:06]}  Rb2 {[%clk 0:00:19]} 50. Ra6+ {[%clk 0:00:06]}  Kf7 {[%clk 0:00:18]} 51. f4 {[%clk 0:00:07]}  Rg2 {[%clk 0:00:13]} 52. fxg5 {[%clk 0:00:06]}  Rxg3 {[%clk 0:00:13]} 53. Kf4 {[%clk 0:00:06]}  Rg4+ {[%clk 0:00:13]} 54. Kf5 {[%clk 0:00:07]}  Rg1 {[%clk 0:00:13]} 55. Ra7+ {[%clk 0:00:07]}  Ke8 {[%clk 0:00:11]} 56. Rh7 {[%clk 0:00:06]}  h4 {[%clk 0:00:10]} 57. Rxh4 {[%clk 0:00:05]}  Kf7 {[%clk 0:00:11]} 58. Rh7+ {[%clk 0:00:05]}  Kg8 {[%clk 0:00:11]} 59. Ra7 {[%clk 0:00:06]}  Re1 {[%clk 0:00:11]} 60. Kg6 {[%clk 0:00:05]}  Kf8 {[%clk 0:00:11]} 61. Kf6 {[%clk 0:00:06]}  Ke8 {[%clk 0:00:11]} 62. Ra8+ {[%clk 0:00:05]}  Kd7 {[%clk 0:00:11]} 63. g6 {[%clk 0:00:06]}  Rxe3 {[%clk 0:00:11]} 64. g7 {[%clk 0:00:06]}  Rf3+ {[%clk 0:00:12]} 65. Ke5 {[%clk 0:00:06]}  Re3+ {[%clk 0:00:12]} 66. Kd5 {[%clk 0:00:05]}  Rf3 {[%clk 0:00:09]} 67. g8=Q {[%clk 0:00:03]}  Rf5+ {[%clk 0:00:10]} 68. Kc4 {[%clk 0:00:03]}  Rf6 {[%clk 0:00:11]} 69. Qg7+ {[%clk 0:00:03]}  Ke6 {[%clk 0:00:11]} 70. Qxf6+ {[%clk 0:00:03]}  Kxf6 {[%clk 0:00:08]} 71. Ra5 {[%clk 0:00:04]} 1-0


[Site "https://www.chess.com"]

[Event "Titled Tuesday Blitz August 08 Late 2023"]
[White "Jimenez Martinez, Jose Vicente"]
[Black "Zeman, Matyas"]
[WhiteFideId "2264021"]
[BlackFideId "364398"]
[WhiteElo "2709"]
[BlackElo "2468"]
[Result "1-0"]
[Round "3"]
[TimeControl "180+1"]
[Date "2023.08.08"]
[WhiteClock "0:00:27"]
[BlackClock "0:00:01"]
[Board "78"]

1. d4 {[%clk 0:03:00]}  Nf6 {[%clk 0:02:59]} 2. c4 {[%clk 0:03:01]}  e6 {[%clk 0:03:00]} 3. Nc3 {[%clk 0:03:00]}  d5 {[%clk 0:03:00]} 4. Nf3 {[%clk 0:03:00]}  c5 {[%clk 0:03:00]} 5. cxd5 {[%clk 0:03:00]}  Nxd5 {[%clk 0:03:00]} 6. g3 {[%clk 0:03:01]}  cxd4 {[%clk 0:02:58]} 7. Nxd5 {[%clk 0:02:59]}  Qxd5 {[%clk 0:02:59]} 8. Qxd4 {[%clk 0:02:57]}  Qb5 {[%clk 0:03:00]} 9. a4 {[%clk 0:02:41]}  Qb4+ {[%clk 0:02:55]} 10. Bd2 {[%clk 0:02:35]}  Nc6 {[%clk 0:02:51]} 11. Qxb4 {[%clk 0:02:06]}  Bxb4 {[%clk 0:02:50]} 12. Bg2 {[%clk 0:02:03]}  O-O {[%clk 0:02:47]} 13. O-O {[%clk 0:02:03]}  Be7 {[%clk 0:01:33]} 14. Rfd1 {[%clk 0:01:51]}  Rd8 {[%clk 0:01:28]} 15. Rac1 {[%clk 0:01:49]}  Bd7 {[%clk 0:01:26]} 16. b3 {[%clk 0:01:47]}  Be8 {[%clk 0:01:25]} 17. Be3 {[%clk 0:01:47]}  Rac8 {[%clk 0:01:24]} 18. h4 {[%clk 0:01:38]}  a6 {[%clk 0:01:22]} 19. Bb6 {[%clk 0:01:37]}  Rxd1+ {[%clk 0:01:21]} 20. Rxd1 {[%clk 0:01:38]}  f6 {[%clk 0:01:14]} 21. Nh2 {[%clk 0:01:37]}  Kf7 {[%clk 0:01:11]} 22. Nf1 {[%clk 0:01:37]}  Nb4 {[%clk 0:01:05]} 23. Ne3 {[%clk 0:01:23]}  Bc6 {[%clk 0:01:02]} 24. Bxc6 {[%clk 0:01:18]}  Rxc6 {[%clk 0:01:03]} 25. a5 {[%clk 0:01:18]}  Ke8 {[%clk 0:01:02]} 26. Nc4 {[%clk 0:01:18]}  Nd5 {[%clk 0:00:59]} 27. Bd4 {[%clk 0:01:14]}  Bb4 {[%clk 0:00:56]} 28. e4 {[%clk 0:01:13]}  Ne7 {[%clk 0:00:48]} 29. h5 {[%clk 0:01:11]}  h6 {[%clk 0:00:47]} 30. Be3 {[%clk 0:01:08]}  Rc7 {[%clk 0:00:44]} 31. Nd6+ {[%clk 0:01:02]}  Bxd6 {[%clk 0:00:40]} 32. Rxd6 {[%clk 0:01:02]}  Rc6 {[%clk 0:00:39]} 33. Rd3 {[%clk 0:00:56]}  Rc7 {[%clk 0:00:33]} 34. Bb6 {[%clk 0:00:53]}  Rd7 {[%clk 0:00:34]} 35. Rc3 {[%clk 0:00:53]}  Nc6 {[%clk 0:00:34]} 36. Kg2 {[%clk 0:00:51]}  Kf7 {[%clk 0:00:33]} 37. Rc5 {[%clk 0:00:50]}  e5 {[%clk 0:00:31]} 38. Rc4 {[%clk 0:00:45]}  Ke6 {[%clk 0:00:31]} 39. Rc3 {[%clk 0:00:41]}  Rd2 {[%clk 0:00:26]} 40. g4 {[%clk 0:00:39]}  Ra2 {[%clk 0:00:18]} 41. Kg3 {[%clk 0:00:33]}  Nxa5 {[%clk 0:00:07]} 42. Rc7 {[%clk 0:00:33]}  Nxb3 {[%clk 0:00:06]} 43. Rxb7 {[%clk 0:00:33]}  Nd4 {[%clk 0:00:02]} 44. Bc5 {[%clk 0:00:28]}  Nc2 {[%clk 0:00:01]} 45. Re7# {[%clk 0:00:27]} 1-0


[Site "https://www.chess.com"]

[Event "Titled Tuesday Blitz August 08 Late 2023"]
[White "Salazar Farias, Luis German"]
[Black "Fiorito, Joaquin"]
[WhiteFideId "3902170"]
[BlackFideId "180173"]
[WhiteElo "2466"]
[BlackElo "2705"]
[Result "0-1"]
[Round "3"]
[TimeControl "180+1"]
[Date "2023.08.08"]
[WhiteClock "0:00:00"]
[BlackClock "0:01:30"]
[Board "79"]

1. d4 {[%clk 0:02:57]}  Nf6 {[%clk 0:02:59]} 2. c4 {[%clk 0:02:56]}  e6 {[%clk 0:03:00]} 3. Nc3 {[%clk 0:02:54]}  Bb4 {[%clk 0:03:00]} 4. Qc2 {[%clk 0:02:53]}  O-O {[%clk 0:02:59]} 5. e4 {[%clk 0:02:51]}  d5 {[%clk 0:02:56]} 6. e5 {[%clk 0:02:36]}  Ne4 {[%clk 0:02:56]} 7. Bd3 {[%clk 0:02:32]}  c5 {[%clk 0:02:56]} 8. Nf3 {[%clk 0:02:29]}  cxd4 {[%clk 0:02:46]} 9. Nxd4 {[%clk 0:02:28]}  Nd7 {[%clk 0:02:30]} 10. Bf4 {[%clk 0:02:18]}  Qh4 {[%clk 0:02:29]} 11. g3 {[%clk 0:02:08]}  Qh5 {[%clk 0:02:28]} 12. O-O {[%clk 0:01:48]}  Bxc3 {[%clk 0:02:27]} 13. bxc3 {[%clk 0:01:47]}  g5 {[%clk 0:02:26]} 14. cxd5 {[%clk 0:01:26]}  gxf4 {[%clk 0:02:20]} 15. dxe6 {[%clk 0:01:08]}  Nxe5 {[%clk 0:02:15]} 16. Bxe4 {[%clk 0:01:06]}  Bxe6 {[%clk 0:02:03]} 17. Rfe1 {[%clk 0:01:02]}  Rac8 {[%clk 0:01:57]} 18. Qd2 {[%clk 0:00:42]}  fxg3 {[%clk 0:01:40]} 19. hxg3 {[%clk 0:00:40]}  Ng4 {[%clk 0:01:36]} 20. Bf3 {[%clk 0:00:15]}  Qh2+ {[%clk 0:01:32]} 21. Kf1 {[%clk 0:00:00]}  Bc4+ {[%clk 0:01:30]} 0-1


[Site "https://www.chess.com"]

[Event "Titled Tuesday Blitz August 08 Late 2023"]
[White "Cheer_Down"]
[Black "Hoang, Thi Bao Tram"]
[BlackFideId "12401102"]
[WhiteElo "2463"]
[BlackElo "2696"]
[Result "1-0"]
[Round "3"]
[TimeControl "180+1"]
[Date "2023.08.08"]
[WhiteClock "0:00:38"]
[BlackClock "0:00:17"]
[Board "81"]

1. e4 {[%clk 0:03:00]}  c6 {[%clk 0:02:56]} 2. d4 {[%clk 0:02:59]}  d5 {[%clk 0:02:57]} 3. e5 {[%clk 0:03:00]}  g6 {[%clk 0:02:54]} 4. Bd3 {[%clk 0:02:54]}  Bg7 {[%clk 0:02:52]} 5. Ne2 {[%clk 0:02:49]}  f6 {[%clk 0:02:33]} 6. f4 {[%clk 0:02:45]}  c5 {[%clk 0:02:25]} 7. c3 {[%clk 0:02:44]}  Nc6 {[%clk 0:02:20]} 8. a3 {[%clk 0:02:34]}  cxd4 {[%clk 0:02:19]} 9. cxd4 {[%clk 0:02:34]}  Nh6 {[%clk 0:02:14]} 10. O-O {[%clk 0:02:27]}  Qb6 {[%clk 0:02:09]} 11. Nbc3 {[%clk 0:02:16]}  Be6 {[%clk 0:02:03]} 12. Kh1 {[%clk 0:02:11]}  O-O {[%clk 0:01:27]} 13. Na4 {[%clk 0:02:08]}  Qc7 {[%clk 0:01:28]} 14. Nc5 {[%clk 0:02:07]}  Bc8 {[%clk 0:01:28]} 15. Be3 {[%clk 0:01:59]}  Ng4 {[%clk 0:01:18]} 16. Bg1 {[%clk 0:01:59]}  b6 {[%clk 0:01:09]} 17. Na4 {[%clk 0:01:54]}  fxe5 {[%clk 0:01:08]} 18. fxe5 {[%clk 0:01:52]}  Be6 {[%clk 0:01:00]} 19. Rc1 {[%clk 0:01:48]}  Rxf1 {[%clk 0:00:52]} 20. Qxf1 {[%clk 0:01:48]}  Rf8 {[%clk 0:00:52]} 21. Qe1 {[%clk 0:01:48]}  Qb7 {[%clk 0:00:41]} 22. h3 {[%clk 0:01:31]}  Nh6 {[%clk 0:00:39]} 23. Nac3 {[%clk 0:01:14]}  Na5 {[%clk 0:00:35]} 24. Bh2 {[%clk 0:01:04]}  Kh8 {[%clk 0:00:33]} 25. Nf4 {[%clk 0:01:04]}  Bg8 {[%clk 0:00:33]} 26. b4 {[%clk 0:00:59]}  Nb3 {[%clk 0:00:32]} 27. Rd1 {[%clk 0:00:56]}  Nf5 {[%clk 0:00:20]} 28. Bxf5 {[%clk 0:00:47]}  Rxf5 {[%clk 0:00:19]} 29. Qh4 {[%clk 0:00:38]}  g5 {[%clk 0:00:17]} 30. Ng6# {[%clk 0:00:38]} 1-0


[Site "https://www.chess.com"]

[Event "Titled Tuesday Blitz August 08 Late 2023"]
[White "Sathish, Pranav"]
[Black "Piesik, Piotr"]
[WhiteFideId "30967538"]
[BlackFideId "1136194"]
[WhiteElo "2460"]
[BlackElo "2655"]
[Result "1-0"]
[Round "3"]
[TimeControl "180+1"]
[Date "2023.08.08"]
[WhiteClock "0:00:05"]
[BlackClock "0:00:17"]
[Board "83"]

1. Nf3 {[%clk 0:03:00]}  g6 {[%clk 0:02:58]} 2. e4 {[%clk 0:03:00]}  Bg7 {[%clk 0:02:58]} 3. d4 {[%clk 0:03:00]}  c6 {[%clk 0:02:59]} 4. Bd3 {[%clk 0:02:57]}  d5 {[%clk 0:02:59]} 5. e5 {[%clk 0:02:57]}  c5 {[%clk 0:02:58]} 6. c3 {[%clk 0:02:57]}  Nc6 {[%clk 0:02:58]} 7. Nbd2 {[%clk 0:02:49]}  cxd4 {[%clk 0:02:56]} 8. cxd4 {[%clk 0:02:48]}  Bg4 {[%clk 0:02:56]} 9. h3 {[%clk 0:02:48]}  Bxf3 {[%clk 0:02:56]} 10. Nxf3 {[%clk 0:02:48]}  e6 {[%clk 0:02:55]} 11. O-O {[%clk 0:02:47]}  Qb6 {[%clk 0:02:55]} 12. Be3 {[%clk 0:02:42]}  Nge7 {[%clk 0:02:54]} 13. a3 {[%clk 0:02:41]}  a5 {[%clk 0:02:50]} 14. Rb1 {[%clk 0:02:37]}  Nf5 {[%clk 0:02:49]} 15. Qe2 {[%clk 0:02:07]}  Nxe3 {[%clk 0:02:42]} 16. fxe3 {[%clk 0:02:06]}  O-O {[%clk 0:02:42]} 17. Kh2 {[%clk 0:02:05]}  a4 {[%clk 0:02:38]} 18. Rf2 {[%clk 0:02:03]}  f6 {[%clk 0:02:25]} 19. exf6 {[%clk 0:02:02]}  Bxf6 {[%clk 0:02:26]} 20. Rbf1 {[%clk 0:02:01]}  Be7 {[%clk 0:02:25]} 21. Qc2 {[%clk 0:01:54]}  Kg7 {[%clk 0:02:20]} 22. Qe2 {[%clk 0:01:43]}  Bd6+ {[%clk 0:02:20]} 23. g3 {[%clk 0:01:40]}  Rf6 {[%clk 0:02:11]} 24. Ng5 {[%clk 0:01:33]}  Raf8 {[%clk 0:01:50]} 25. Rxf6 {[%clk 0:01:24]}  Rxf6 {[%clk 0:01:51]} 26. Rxf6 {[%clk 0:01:18]}  Kxf6 {[%clk 0:01:52]} 27. Nxh7+ {[%clk 0:01:18]}  Ke7 {[%clk 0:01:52]} 28. Bxg6 {[%clk 0:01:15]}  e5 {[%clk 0:01:42]} 29. Qf2 {[%clk 0:01:01]}  Kd8 {[%clk 0:01:34]} 30. Ng5 {[%clk 0:00:47]}  Kc7 {[%clk 0:01:30]} 31. Bf7 {[%clk 0:00:39]}  exd4 {[%clk 0:01:26]} 32. Ne6+ {[%clk 0:00:35]}  Kb8 {[%clk 0:01:26]} 33. Nxd4 {[%clk 0:00:35]}  Ne5 {[%clk 0:01:06]} 34. Bxd5 {[%clk 0:00:24]}  Nd3 {[%clk 0:01:05]} 35. Qc2 {[%clk 0:00:18]}  Nxb2 {[%clk 0:00:59]} 36. h4 {[%clk 0:00:09]}  Bxa3 {[%clk 0:00:56]} 37. h5 {[%clk 0:00:09]}  Qh6 {[%clk 0:00:52]} 38. Qg6 {[%clk 0:00:06]}  Qxe3 {[%clk 0:00:50]} 39. Qg8+ {[%clk 0:00:04]}  Ka7 {[%clk 0:00:49]} 40. Nb5+ {[%clk 0:00:04]}  Kb6 {[%clk 0:00:49]} 41. Nxa3 {[%clk 0:00:04]}  Qe2+ {[%clk 0:00:29]} 42. Bg2 {[%clk 0:00:03]}  Qxh5+ {[%clk 0:00:29]} 43. Kg1 {[%clk 0:00:03]}  Qc5+ {[%clk 0:00:29]} 44. Kh2 {[%clk 0:00:03]}  Qxa3 {[%clk 0:00:30]} 45. Qd8+ {[%clk 0:00:03]}  Ka6 {[%clk 0:00:28]} 46. Qa8+ {[%clk 0:00:03]}  Kb5 {[%clk 0:00:27]} 47. Qxb7+ {[%clk 0:00:04]}  Kc4 {[%clk 0:00:27]} 48. Qe4+ {[%clk 0:00:04]}  Kc3 {[%clk 0:00:27]} 49. g4 {[%clk 0:00:04]}  Nd3 {[%clk 0:00:26]} 50. Qc6+ {[%clk 0:00:03]}  Kd2 {[%clk 0:00:24]} 51. g5 {[%clk 0:00:03]}  Qc3 {[%clk 0:00:21]} 52. Qxc3+ {[%clk 0:00:02]}  Kxc3 {[%clk 0:00:22]} 53. g6 {[%clk 0:00:03]}  a3 {[%clk 0:00:21]} 54. g7 {[%clk 0:00:03]}  a2 {[%clk 0:00:19]} 55. g8=Q {[%clk 0:00:03]}  Nb4 {[%clk 0:00:19]} 56. Qh8+ {[%clk 0:00:04]}  Kc2 {[%clk 0:00:19]} 57. Be4+ {[%clk 0:00:03]}  Kb3 {[%clk 0:00:18]} 58. Qa1 {[%clk 0:00:02]}  Ka3 {[%clk 0:00:17]} 59. Kg2 {[%clk 0:00:02]}  Kb3 {[%clk 0:00:18]} 60. Kf2 {[%clk 0:00:02]}  Na6 {[%clk 0:00:17]} 61. Ke2 {[%clk 0:00:03]}  Nc5 {[%clk 0:00:18]} 62. Bd5+ {[%clk 0:00:03]}  Ka3 {[%clk 0:00:18]} 63. Qxa2+ {[%clk 0:00:04]}  Kb4 {[%clk 0:00:18]} 64. Qc4+ {[%clk 0:00:04]}  Ka3 {[%clk 0:00:18]} 65. Qxc5+ {[%clk 0:00:05]}  Kb2 {[%clk 0:00:19]} 66. Bc4 {[%clk 0:00:06]}  Kc3 {[%clk 0:00:17]} 67. Bd3+ {[%clk 0:00:05]} 1-0


[Site "https://www.chess.com"]